bitfinex-derivatives/quotes_BTCF0:USTF0_20240925
["timestamp","ask_amount","ask_price","bid_price","bid_amount"]
[1727294802019,0.26123598,63338.0,63337.0,0.002]
[1727294802910,0.10334598,63338.0,63337.0,0.002]
[1727294803508,0.10334598,63338.0,63337.0,0.27537901]
[1727294803712,0.07204598,63338.0,63337.0,0.19654228]
[1727294805822,0.07204598,63338.0,63337.0,0.27536986]
[1727294806121,0.07204598,63338.0,63337.0,0.19654228]
[1727294807719,0.07204598,63338.0,63337.0,0.080946]
[1727294814431,0.0316,63338.0,63337.0,0.080946]
[1727294814621,0.02858679,63340.0,63339.0,0.078944]
[1727294814912,0.078941,63342.0,63341.0,0.078941]
[1727294815919,0.001,63342.0,63341.0,0.001]
[1727294816226,0.07994,63342.0,63341.0,0.079941]
[1727294817723,0.07994,63342.0,63341.0,0.080941]
[1727294818824,0.10870429,63342.0,63341.0,0.080941]
[1727294822831,0.19583063,63342.0,63341.0,0.080941]
[1727294825635,0.19583063,63342.0,63341.0,0.339882]
[1727294825636,0.2618293,63342.0,63341.0,0.339882]
[1727294825834,0.08812634,63342.0,63341.0,0.339882]
[1727294826420,0.24601141,63342.0,63341.0,0.339882]
[1727294826731,0.24601141,63342.0,63341.0,0.260941]
[1727294826926,0.08812634,63342.0,63341.0,0.080941]
[1727294827125,0.24599285,63342.0,63341.0,0.080941]
[1727294828135,0.32493285,63342.0,63341.0,0.002]
[1727294828326,0.35563285,63342.0,63341.0,0.002]
[1727294828522,0.47563285,63342.0,63341.0,0.002]
[1727294829448,0.31776634,63342.0,63341.0,0.002]
[1727294829735,0.31776519,63342.0,63341.0,0.002]
[1727294829939,0.23064,63342.0,63341.0,0.19623619]
[1727294830432,0.23064,63342.0,63341.0,0.19618121]
[1727294830838,0.23064,63342.0,63341.0,0.19618123]
[1727294832442,0.11064,63342.0,63341.0,0.27512223]
[1727294834141,0.001,63342.0,63341.0,0.27512223]
[1727294834334,0.001,63342.0,63341.0,0.19635419]
[1727294834738,0.001,63342.0,63341.0,0.55715419]
[1727294837847,0.001,63342.0,63341.0,0.441741]
[1727294837848,0.03965965,63342.0,63341.0,0.441741]
[1727294841037,0.03965965,63342.0,63341.0,0.080941]
[1727294841251,0.23859965,63342.0,63341.0,0.080941]
[1727294842352,0.11859965,63342.0,63341.0,0.080941]
[1727294843642,0.07994,63342.0,63341.0,0.080941]
[1727294844542,0.07994,63342.0,63341.0,0.002]
[1727294844746,0.07994,63342.0,63341.0,0.080941]
[1727294844951,0.07994,63342.0,63341.0,0.14393073]
[1727294847849,0.07994,63342.0,63341.0,0.14390492]
[1727294848244,0.07994,63342.0,63341.0,0.080941]
[1727294849742,0.001,63342.0,63341.0,0.080941]
[1727294851045,0.07994,63342.0,63341.0,0.080941]
[1727294852942,0.07994,63342.0,63341.0,0.27494576]
[1727294853560,0.07994,63342.0,63341.0,0.1962086]
[1727294854153,0.07994,63342.0,63341.0,0.080941]
[1727294854360,0.07994,63342.0,63341.0,0.1962113]
[1727294857759,0.001,63342.0,63341.0,0.1962113]
[1727294858757,0.078937,63345.0,63344.0,0.078938]
[1727294859956,0.16605574,63345.0,63344.0,0.079938]
[1727294860151,0.23779289,63345.0,63344.0,0.080938]
[1727294860455,0.32495665,63345.0,63344.0,0.080938]
[1727294860758,0.078949,63336.0,63335.0,0.078946]
[1727294861059,0.11760947,63336.0,63335.0,0.078946]
[1727294861949,0.29760947,63336.0,63335.0,0.079946]
[1727294862651,0.29760947,63336.0,63335.0,0.080946]
[1727294865660,0.32595878,63336.0,63335.0,0.080946]
[1727294868164,0.28729831,63336.0,63335.0,0.19644987]
[1727294868958,0.28729831,63336.0,63335.0,0.080946]
[1727294869259,0.28729831,63336.0,63335.0,0.19640824]
[1727294870461,0.22729831,63336.0,63335.0,0.19640824]
[1727294872964,0.38519631,63336.0,63335.0,0.07875774]
[1727294873259,0.38519631,63336.0,63331.0,0.09469006]
[1727294873260,0.157904,63332.0,63331.0,0.07875774]
[1727294873462,0.157908,63331.0,63330.0,0.07875774]
[1727294873665,0.15791,63330.0,63327.0,0.07876213]
[1727294873863,0.15791,63330.0,63318.0,0.2218716]
[1727294873864,0.07896,63326.0,63325.0,0.07876213]
[1727294874061,0.078964,63323.0,63322.0,0.078965]
[1727294874370,0.4808,63323.0,63320.0,0.0630169]
[1727294874556,0.12,63321.0,63318.0,0.0630169]
[1727294874755,0.078976,63313.0,63312.0,0.07874643]
[1727294874960,0.078977,63312.0,63311.0,0.07874643]
[1727294875162,0.109877,63312.0,63307.0,0.078983]
[1727294875370,0.12,63308.0,63307.0,0.078983]
[1727294876267,0.18,63308.0,63307.0,0.083983]
[1727294876775,0.18,63308.0,63307.0,0.078983]
[1727294876958,0.18,63308.0,63307.0,0.083983]
[1727294877355,0.177,63308.0,63307.0,0.083983]
[1727294878271,0.177,63308.0,63307.0,0.086983]
[1727294880367,0.255982,63308.0,63307.0,0.086983]
[1727294880673,0.177,63308.0,63307.0,0.086983]
[1727294881458,0.078981,63310.0,63309.0,0.078981]
[1727294882164,0.10802325,63310.0,63309.0,0.078981]
[1727294882966,0.10802325,63310.0,63309.0,0.081981]
[1727294883369,0.10802325,63310.0,63309.0,0.082981]
[1727294887563,0.10802325,63310.0,63309.0,0.004]
[1727294887769,0.078991,63302.0,63294.0,0.070858]
[1727294887965,0.078996,63299.0,63298.0,0.078993]
[1727294888185,0.258996,63299.0,63298.0,0.078993]
[1727294888480,0.18,63299.0,63298.0,0.078993]
[1727294888777,0.2425,63301.0,63300.0,0.078992]
[1727294889490,0.2107,63301.0,63300.0,0.078992]
[1727294889678,0.18,63301.0,63300.0,0.078992]
[1727294890069,0.3608,63302.0,63301.0,0.078991]
[1727294890475,0.44062,63310.0,63309.0,0.078981]
[1727294890782,0.43978,63310.0,63309.0,0.078981]
[1727294892873,0.45478,63310.0,63309.0,0.080981]
[1727294895580,0.63478,63310.0,63309.0,0.080981]
[1727294896679,0.63478,63310.0,63309.0,0.002]
[1727294897485,1.78764,63310.0,63309.0,0.002]
[1727294897682,0.71376,63310.0,63309.0,0.002]
[1727294897872,1.78764,63310.0,63309.0,0.002]
[1727294898275,0.71376,63310.0,63309.0,0.002]
[1727294898981,1.18764,63310.0,63309.0,0.002]
[1727294901385,1.78764,63310.0,63309.0,0.002]
[1727294901780,1.60764,63310.0,63309.0,0.002]
[1727294902086,1.60764,63310.0,63301.0,0.078991]
[1727294902087,0.07899,63302.0,63301.0,0.078991]
[1727294902382,0.25899,63302.0,63301.0,0.078991]
[1727294903276,0.25999,63302.0,63301.0,0.078991]
[1727294904187,0.25999,63302.0,63301.0,0.14202662]
[1727294904587,0.25999,63302.0,63301.0,0.078991]
[1727294904888,0.07999,63302.0,63301.0,0.078991]
[1727294905185,0.04046546,63302.0,63301.0,0.19545579]
[1727294906284,0.04046546,63302.0,63301.0,0.19512571]
[1727294909582,0.04046546,63302.0,63301.0,0.28981577]
[1727294910593,0.04046546,63302.0,63301.0,0.19512571]
[1727294911791,0.04046546,63302.0,63301.0,0.28981577]
[1727294912194,0.04046546,63302.0,63301.0,0.078991]
[1727294912391,0.04046546,63302.0,63301.0,0.19509913]
[1727294912693,0.04046546,63302.0,63301.0,0.28978919]
[1727294913085,0.04046546,63302.0,63301.0,0.078991]
[1727294913788,0.001,63302.0,63301.0,0.078991]
[1727294915694,0.02978969,63302.0,63301.0,0.078991]
[1727294920290,0.02978969,63302.0,63301.0,0.19520412]
[1727294921092,0.02978969,63302.0,63301.0,0.28989418]
[1727294921291,0.02978969,63302.0,63301.0,0.19520412]
[1727294921501,0.02978969,63302.0,63301.0,0.28989418]
[1727294922290,0.001,63302.0,63301.0,0.28989418]
[1727294924603,0.121,63302.0,63301.0,0.28989418]
[1727294928295,0.121,63302.0,63301.0,0.1421952]
[1727294930404,0.121,63302.0,63301.0,0.078991]
[1727294931308,0.121,63302.0,63301.0,0.14220102]
[1727294932414,0.121,63302.0,63301.0,0.078991]
[1727294933302,0.121,63302.0,63301.0,0.14220184]
[1727294933610,0.121,63302.0,63301.0,0.078991]
[1727294935204,0.121,63302.0,63301.0,0.19506144]
[1727294935408,0.001,63302.0,63301.0,0.33340845]
[1727294935715,0.001,63302.0,63301.0,0.19506144]
[1727294936507,0.001,63302.0,63301.0,0.33343685]
[1727294943539,0.121,63302.0,63301.0,0.33343685]
[1727294944612,0.1522,63302.0,63301.0,0.33343685]
[1727294945319,0.1522,63302.0,63301.0,0.19506144]
[1727294945516,0.23119,63302.0,63301.0,0.19506144]
[1727294949731,0.23119,63302.0,63301.0,0.19511196]
[1727294950118,0.23019,63302.0,63301.0,0.19511196]
[1727294950313,0.23019,63302.0,63301.0,0.078991]
[1727294950619,0.23019,63302.0,63301.0,0.14221592]
[1727294953128,0.23019,63302.0,63301.0,0.078991]
[1727294953426,0.26249,63302.0,63301.0,0.078991]
[1727294958332,0.26249,63302.0,63301.0,0.19491129]
[1727294960322,0.26249,63302.0,63301.0,0.1579899]
[1727294960725,0.26249,63302.0,63301.0,0.27396923]
[1727294963835,0.6472205,63302.0,63301.0,0.27396923]
[1727294964023,0.6472205,63302.0,63301.0,0.078991]
[1727294964223,0.6472205,63302.0,63301.0,0.27388627]
[1727294964547,0.6472205,63302.0,63301.0,0.27388618]
[1727294965034,0.7262105,63302.0,63301.0,0.19489518]
[1727294965326,0.078991,63301.0,63300.0,0.0789989]
[1727294965526,0.2229215,63301.0,63300.0,0.19489834]
[1727294966122,0.078992,63300.0,63299.0,0.0789989]
[1727294966322,0.2229225,63300.0,63299.0,0.19493694]
[1727294966731,0.2219225,63300.0,63299.0,0.19493694]
[1727294967135,0.3009145,63300.0,63299.0,0.19493694]
[1727294967334,0.076994,63299.0,63298.0,0.0789989]
[1727294967528,0.078995,63298.0,63297.0,0.0789989]
[1727294967731,0.1759305,63298.0,63297.0,0.11599277]
[1727294968433,0.1749305,63298.0,63297.0,0.11599277]
[1727294968935,0.2539255,63298.0,63297.0,0.11599277]
[1727294969123,0.075996,63297.0,63296.0,0.07898263]
[1727294969324,0.195996,63297.0,63296.0,0.19503097]
[1727294969536,0.192996,63297.0,63296.0,0.19503097]
[1727294970124,0.188996,63297.0,63296.0,0.19503097]
[1727294970731,0.189996,63297.0,63296.0,0.20403097]
[1727294970935,0.2139265,63297.0,63296.0,0.28302797]
[1727294971133,0.2929225,63297.0,63296.0,0.08798263]
[1727294971338,0.2929225,63297.0,63296.0,0.009]
[1727294971533,0.2929225,63297.0,63296.0,0.08798263]
[1727294971734,0.2929225,63297.0,63296.0,0.2040217]
[1727294971935,0.2929225,63297.0,63296.0,0.009]
[1727294977742,0.2929225,63297.0,63296.0,0.07216404]
[1727294978243,0.2929225,63297.0,63296.0,0.009]
[1727294980149,0.6537225,63297.0,63296.0,0.009]
[1727294983236,2.1537225,63297.0,63296.0,0.009]
[1727294984740,0.6537225,63297.0,63296.0,0.009]
[1727294995645,0.5747265,63297.0,63296.0,0.009]
[1727294996048,0.5747265,63297.0,63296.0,0.07216404]
[1727294997156,0.5747265,63297.0,63296.0,0.087997]
[1727294997653,0.5747265,63297.0,63296.0,0.15118081]
[1727294998146,0.5747265,63297.0,63296.0,0.087997]
[1727295000355,0.3618,63297.0,63296.0,0.087997]
[1727295000554,0.3608,63301.0,63300.0,0.078992]
[1727295000861,0.3608,63301.0,63300.0,0.19513897]
[1727295002860,0.3608,63301.0,63300.0,0.19469336]
[1727295003161,0.3608,63301.0,63300.0,0.27364531]
[1727295003356,0.3608,63301.0,63300.0,0.19469336]
[1727295003556,0.3608,63301.0,63300.0,0.078992]
[1727295003557,0.44797954,63301.0,63300.0,0.078992]
[1727295004259,0.6216825,63301.0,63300.0,0.078992]
[1727295004561,0.44797954,63301.0,63300.0,0.078992]
[1727295005055,0.1300385,63303.0,63302.0,0.07899]
[1727295005365,0.03464008,63305.0,63304.0,0.157974]
[1727295005554,0.199809,63319.0,63311.0,0.078979]
[1727295005555,0.0037,63312.0,63311.0,0.078979]
[1727295005755,0.07897,63318.0,63315.0,0.078974]
[1727295006061,0.12,63316.0,63315.0,0.078974]
[1727295006566,0.198972,63316.0,63315.0,0.078974]
[1727295006860,0.078979,63311.0,63309.0,0.078981]
[1727295007050,0.12,63310.0,63309.0,0.078981]
[1727295009575,0.129,63310.0,63309.0,0.079981]
[1727295010458,0.138,63310.0,63309.0,0.079981]
[1727295011454,0.16689977,63310.0,63309.0,0.079981]
[1727295015167,0.04689977,63310.0,63309.0,0.079981]
[1727295021971,0.018,63310.0,63309.0,0.079981]
[1727295022463,0.018,63310.0,63309.0,1.311823]
[1727295022666,0.018,63310.0,63309.0,1.47915252]
[1727295022860,0.018,63310.0,63309.0,1.47965252]
[1727295023962,0.018,63310.0,63309.0,0.87965252]
[1727295026557,0.45778,63310.0,63309.0,0.001]
[1727295026759,0.45778,63310.0,63300.0,0.082692]
[1727295026760,0.3788,63310.0,63300.0,0.0037]
[1727295027062,0.3788,63310.0,63296.0,0.36316964]
[1727295027063,0.12,63302.0,63296.0,0.36686964]
[1727295027265,0.12,63299.0,63296.0,0.36316964]
[1727295027474,0.078996,63297.0,63296.0,0.36316964]
[1727295027665,0.12,63299.0,63296.0,0.36316964]
[1727295028268,0.12,63299.0,63296.0,0.36416964]
[1727295028668,0.12,63299.0,63296.0,0.36316964]
[1727295028863,0.121,63299.0,63296.0,0.36416964]
[1727295029063,0.078996,63298.0,63296.0,0.36816964]
[1727295029263,0.121,63299.0,63296.0,0.00736964]
[1727295029970,0.0331,63298.0,63296.0,0.00736964]
[1727295030171,0.078996,63297.0,63296.0,0.00736964]
[1727295031965,0.079996,63297.0,63296.0,0.00736964]
[1727295032670,0.079996,63297.0,63296.0,0.20461256]
[1727295033372,0.079996,63297.0,63296.0,0.00736964]
[1727295034271,0.079001,63293.0,63292.0,0.07893877]
[1727295034474,0.079005,63290.0,63289.0,0.07893877]
[1727295034674,0.079002,63292.0,63288.0,0.07893877]
[1727295034675,0.079006,63289.0,63288.0,0.07893877]
[1727295034875,0.199006,63289.0,63288.0,0.07893877]
[1727295035068,0.079007,63288.0,63287.0,0.07893877]
[1727295035268,0.199007,63288.0,63287.0,0.19742409]
[1727295035467,0.199007,63288.0,63286.0,0.07893877]
[1727295035468,0.190007,63288.0,63286.0,0.07893877]
[1727295035869,0.190007,63288.0,63286.0,0.15794877]
[1727295036075,0.079002,63292.0,63287.0,0.07993877]
[1727295036373,0.079005,63290.0,63289.0,0.06300902]
[1727295037676,0.199005,63290.0,63289.0,0.06300902]
[1727295038079,0.201005,63290.0,63289.0,0.06300902]
[1727295038575,0.201005,63290.0,63288.0,0.06300902]
[1727295038576,0.079006,63289.0,63288.0,0.06300902]
[1727295040468,0.079007,63288.0,63287.0,0.14201702]
[1727295040675,0.079007,63288.0,63287.0,0.079008]
[1727295042877,0.081007,63288.0,63287.0,0.079008]
[1727295044185,0.2622,63328.0,63287.0,0.079008]
[1727295044186,0.0037,63300.0,63296.0,0.078997]
[1727295044370,0.0037,63304.0,63296.0,0.95476]
[1727295044571,0.4285,63307.0,63299.0,0.078993]
[1727295044572,0.078989,63303.0,63299.0,0.078993]
[1727295044777,0.12,63305.0,63302.0,0.07899]
[1727295045076,0.198986,63305.0,63302.0,0.07899]
[1727295045480,0.115881,63310.0,63306.0,0.078985]
[1727295045481,0.0037,63310.0,63306.0,0.078985]
[1727295045783,0.0037,63316.0,63309.0,0.4808]
[1727295045973,0.0622,63318.0,63312.0,0.12]
[1727295045974,0.0037,63317.0,63312.0,0.12]
[1727295046172,0.0622,63318.0,63317.0,0.078971]
[1727295047884,0.0762,63318.0,63317.0,0.079971]
[1727295048181,0.0902,63318.0,63317.0,0.079971]
[1727295062782,0.02058786,63318.0,63317.0,0.82592185]
[1727295062986,0.0037,63325.0,63323.0,0.078964]
[1727295063184,0.0322,63329.0,63324.0,0.619762]
[1727295063496,0.0322,63329.0,63328.0,0.078957]
[1727295063990,0.0307,63335.0,63334.0,0.07895]
[1727295065994,0.0615,63335.0,63334.0,0.07895]
[1727295066596,0.0615,63335.0,63334.0,0.07995]
[1727295066997,0.0755,63335.0,63334.0,0.08095]
[1727295068199,0.0074,63342.0,63341.0,0.157882]
[1727295068400,0.0074,63349.0,63341.0,0.88149261]
[1727295068601,0.18,63351.0,63341.0,0.52721391]
[1727295068800,0.18,63351.0,63350.0,0.07893]
[1727295070107,0.182,63351.0,63350.0,0.07993]
[1727295070518,0.182,63351.0,63350.0,0.08093]
[1727295075225,0.002,63351.0,63350.0,0.23879]
[1727295075428,0.002,63351.0,63350.0,1.49069164]
[1727295075629,0.002,63351.0,63350.0,1.54909164]
[1727295075921,0.002,63351.0,63350.0,1.47016164]
[1727295076118,0.0074,63358.0,63350.0,1.47016164]
[1727295076119,0.0074,63358.0,63357.0,0.078921]
[1727295076316,0.111413,63364.0,63355.0,0.5408]
[1727295076520,0.111413,63364.0,63362.0,0.078915]
[1727295076723,0.18,63363.0,63362.0,0.078915]
[1727295077818,0.40148707,63363.0,63362.0,0.078915]
[1727295078126,0.44013642,63363.0,63362.0,0.078915]
[1727295078320,0.42391588,63363.0,63362.0,0.078915]
[1727295078512,0.26709368,63363.0,63362.0,0.078915]
[1727295078709,0.26709368,63363.0,63362.0,0.079915]
[1727295078913,0.26709369,63363.0,63362.0,0.079915]
[1727295079123,0.42986401,63363.0,63362.0,0.079915]
[1727295079326,0.42986401,63363.0,63362.0,0.080915]
[1727295079716,0.42386401,63363.0,63362.0,0.078915]
[1727295079928,0.24986401,63363.0,63362.0,0.080915]
[1727295080125,0.09309369,63363.0,63362.0,0.080915]
[1727295080429,0.51757032,63365.0,63364.0,0.236739]
[1727295080430,0.00084,63365.0,63364.0,0.236739]
[1727295080719,0.008,63376.0,63369.0,0.236718]
[1727295080924,0.18787032,63380.0,63373.0,0.157802]
[1727295080925,0.0074,63374.0,63373.0,0.157802]
[1727295081121,0.0311,63380.0,63379.0,0.078894]
[1727295081317,0.0311,63380.0,63379.0,0.439694]
[1727295082621,0.0311,63380.0,63379.0,0.440694]
[1727295082924,0.0311,63380.0,63379.0,0.441694]
[1727295083512,0.0311,63380.0,63379.0,0.080894]
[1727295085526,0.109993,63380.0,63379.0,0.080894]
[1727295088033,0.109993,63380.0,63379.0,0.441694]
[1727295088335,0.0311,63380.0,63379.0,0.441694]
[1727295088519,0.0311,63380.0,63379.0,0.621694]
[1727295091131,0.0311,63380.0,63379.0,0.441694]
[1727295095137,0.0311,63380.0,63379.0,0.080894]
[1727295095338,0.0311,63380.0,63379.0,0.441694]
[1727295096937,0.086285,63387.0,63379.0,1.01612]
[1727295097135,0.078889,63384.0,63379.0,0.71064497]
[1727295097333,0.078889,63384.0,63382.0,0.078889]
[1727295097538,1.578889,63383.0,63382.0,0.078889]
[1727295098227,0.07889,63382.0,63379.0,0.37192]
[1727295098426,0.258893,63380.0,63379.0,0.00988]
[1727295098634,0.258893,63380.0,63370.0,0.0074]
[1727295098635,0.078904,63372.0,63370.0,0.0074]
[1727295098834,0.078905,63370.0,63367.0,0.36204]
[1727295099034,0.078905,63370.0,63367.0,0.3608]
[1727295100546,0.077905,63370.0,63367.0,0.3608]
[1727295100733,0.077905,63370.0,63367.0,0.439708]
[1727295101243,0.077905,63370.0,63367.0,0.446708]
[1727295101635,0.077905,63370.0,63367.0,0.439708]
[1727295101841,0.0317,63369.0,63367.0,0.439708]
[1727295103231,0.0317,63369.0,63367.0,0.3608]
[1727295103442,0.078908,63368.0,63367.0,0.3608]
[1727295103938,0.0317,63369.0,63368.0,0.078908]
[1727295104446,0.110606,63369.0,63368.0,0.078908]
[1727295104641,0.078908,63368.0,63367.0,0.001]
[1727295104845,0.078909,63367.0,63365.0,0.07891]
[1727295105442,0.078909,63367.0,63366.0,0.07891]
[1727295108050,0.078909,63367.0,63366.0,0.07991]
[1727295108744,0.078909,63367.0,63366.0,0.12702078]
[1727295109148,0.078909,63367.0,63366.0,0.07991]
[1727295111648,0.078909,63367.0,63366.0,0.12703778]
[1727295113544,0.078909,63367.0,63366.0,0.07991]
[1727295115451,0.0317,63369.0,63368.0,0.078908]
[1727295116139,0.078904,63371.0,63370.0,0.078904]
[1727295116346,0.078904,63371.0,63370.0,0.19319197]
[1727295116748,0.0037,63379.0,63378.0,0.078895]
[1727295116936,0.0037,63386.0,63378.0,0.65475886]
[1727295117144,0.078885,63386.0,63383.0,0.15736943]
[1727295117342,0.078885,63386.0,63383.0,0.078889]
[1727295117738,0.078885,63386.0,63385.0,0.06278108]
[1727295118843,0.078885,63386.0,63385.0,0.06378108]
[1727295119339,0.142285,63386.0,63385.0,0.06378108]
[1727295119543,0.142285,63386.0,63385.0,0.001]
[1727295119748,0.503085,63386.0,63385.0,0.001]
[1727295120142,0.503085,63386.0,63385.0,0.002]
[1727295121546,0.503085,63386.0,63385.0,0.080886]
[1727295122247,0.503085,63386.0,63385.0,0.12798219]
[1727295123154,0.503085,63386.0,63385.0,0.080886]
[1727295128546,0.4242,63386.0,63385.0,0.080886]
[1727295128753,0.00092,63392.0,63385.0,0.182]
[1727295129054,0.078876,63394.0,63393.0,0.078877]
[1727295130156,0.0315,63397.0,63395.0,0.078873]
[1727295130458,0.0315,63397.0,63396.0,0.078873]
[1727295131050,0.11854803,63397.0,63396.0,0.078873]
[1727295131456,0.14698827,63397.0,63396.0,0.078873]
[1727295131653,0.09856933,63397.0,63396.0,0.079873]
[1727295131847,0.20148838,63397.0,63396.0,0.080873]
[1727295132046,0.28853614,63397.0,63396.0,0.080873]
[1727295132959,0.115488,63397.0,63396.0,0.080873]
[1727295133153,0.06706933,63397.0,63396.0,0.080873]
[1727295133550,0.15418959,63397.0,63396.0,0.080873]
[1727295133751,0.19281868,63397.0,63396.0,0.080873]
[1727295134457,0.06706933,63397.0,63396.0,0.080873]
[1727295134655,0.06706933,63397.0,63396.0,0.002]
[1727295134957,0.24706933,63397.0,63396.0,0.002]
[1727295135460,0.32594133,63397.0,63396.0,0.002]
[1727295136366,0.07888,63390.0,63389.0,0.078881]
[1727295136666,0.29751264,63390.0,63389.0,0.078881]
[1727295137158,0.42323935,63390.0,63389.0,0.078881]
[1727295137358,0.29751264,63390.0,63389.0,0.078881]
[1727295137568,0.29751264,63390.0,63389.0,0.079881]
[1727295137957,0.29751264,63390.0,63389.0,0.080881]
[1727295138154,0.25888,63390.0,63389.0,0.080881]
[1727295138658,0.25888,63390.0,63389.0,0.441681]
[1727295138659,0.07888,63390.0,63389.0,0.441681]
[1727295140253,0.25888,63390.0,63389.0,0.002]
[1727295142354,0.25888,63390.0,63389.0,0.080881]
[1727295142564,0.07888,63390.0,63389.0,0.080881]
[1727295144865,0.61968,63390.0,63389.0,0.002]
[1727295145572,0.51856,63390.0,63389.0,0.002]
[1727295145863,0.69856,63390.0,63389.0,0.002]
[1727295146254,0.7371969,63390.0,63389.0,0.002]
[1727295148154,0.7371969,63390.0,63381.0,0.0037]
[1727295148155,0.078888,63385.0,63381.0,0.0037]
[1727295148355,0.078891,63381.0,63380.0,0.078892]
[1727295148763,0.1175279,63381.0,63380.0,0.078892]
[1727295150168,0.1185283,63381.0,63380.0,0.078892]
[1727295150662,0.078899,63377.0,63376.0,0.078897]
[1727295150864,0.1175363,63377.0,63376.0,0.078897]
[1727295151056,0.24354649,63377.0,63376.0,0.078897]
[1727295152259,0.60434649,63377.0,63376.0,0.078897]
[1727295152462,0.078904,63371.0,63370.0,0.00236701]
[1727295152664,0.6583413,63371.0,63370.0,0.00236701]
[1727295152967,0.78433756,63371.0,63370.0,0.00236701]
[1727295153171,0.619704,63371.0,63370.0,0.00236701]
[1727295153368,0.439704,63371.0,63370.0,0.00236701]
[1727295153867,0.439704,63371.0,63370.0,0.00436701]
[1727295154172,0.439704,63371.0,63370.0,0.08727201]
[1727295154669,0.439704,63371.0,63370.0,0.1343847]
[1727295155669,0.439704,63371.0,63370.0,0.08727201]
[1727295156067,0.439704,63371.0,63370.0,0.084905]
[1727295157871,0.46769417,63371.0,63370.0,0.084905]
[1727295159577,0.46769417,63371.0,63370.0,0.006]
[1727295163966,0.54659817,63371.0,63370.0,0.006]
[1727295165686,0.72659817,63371.0,63370.0,0.006]
[1727295175586,0.72659817,63371.0,63370.0,0.05311269]
[1727295176293,0.66659817,63371.0,63370.0,0.006]
[1727295176482,0.66659817,63371.0,63370.0,0.05311269]
[1727295177298,0.46769417,63371.0,63370.0,0.204905]
[1727295177483,0.46769417,63371.0,63370.0,0.084905]
[1727295177679,0.46769417,63371.0,63370.0,0.14768608]
[1727295178092,0.46769417,63371.0,63370.0,0.084905]
[1727295181305,0.10689417,63371.0,63370.0,0.084905]
[1727295183490,0.0008,63374.0,63370.0,1.5602]
[1727295183692,0.0074,63378.0,63373.0,0.559701]
[1727295183895,0.0034,63382.0,63377.0,0.4808]
[1727295184096,0.0034,63382.0,63381.0,0.198891]
[1727295184300,0.0034,63382.0,63381.0,0.277782]
[1727295184600,0.0034,63382.0,63381.0,0.198891]
[1727295186395,0.0034,63382.0,63381.0,0.258891]
[1727295186595,0.0288271,63392.0,63391.0,0.078879]
[1727295186797,0.3608,63396.0,63393.0,0.078876]
[1727295187004,0.03863228,63395.0,63393.0,0.078876]
[1727295187308,0.439673,63396.0,63394.0,0.078875]
[1727295187907,0.440673,63396.0,63394.0,0.078875]
[1727295188205,0.002,63395.0,63394.0,0.078875]
[1727295189006,0.47086903,63396.0,63394.0,0.079875]
[1727295189506,0.03119603,63396.0,63395.0,0.078874]
[1727295189694,0.03119603,63396.0,63395.0,0.258874]
[1727295190102,0.003,63396.0,63395.0,0.337748]
[1727295190494,0.001,63396.0,63395.0,0.337748]
[1727295190690,0.109659,63407.0,63406.0,0.07886]
[1727295191405,0.13752498,63407.0,63406.0,0.07886]
[1727295192191,0.13952498,63407.0,63406.0,0.07986]
[1727295192806,0.14052498,63407.0,63406.0,0.08086]
[1727295198202,0.22756339,63407.0,63406.0,0.08086]
[1727295199406,0.22756339,63407.0,63388.0,0.32984]
[1727295199407,0.68950439,63407.0,63388.0,0.32984]
[1727295199601,0.68950439,63407.0,63395.0,0.078874]
[1727295199602,0.078874,63396.0,63395.0,0.078874]
[1727295199801,0.11749882,63396.0,63395.0,0.078874]
[1727295200610,0.16591841,63396.0,63395.0,0.078874]
[1727295201403,0.16791841,63396.0,63395.0,0.079874]
[1727295202211,0.16792438,63396.0,63395.0,0.079874]
[1727295202411,0.16992438,63396.0,63395.0,0.080874]
[1727295203006,0.34239374,63396.0,63395.0,0.002]
[1727295203211,0.34992438,63396.0,63395.0,0.002]
[1727295206018,0.37820687,63396.0,63395.0,0.002]
[1727295206319,0.32175649,63396.0,63395.0,0.002]
[1727295212320,0.26175649,63396.0,63395.0,0.002]
[1727295212717,0.26175649,63396.0,63395.0,0.080874]
[1727295219151,0.14175649,63396.0,63395.0,0.200874]
[1727295219955,0.11115649,63396.0,63395.0,0.200874]
[1727295221253,0.19820738,63396.0,63395.0,0.200874]
[1727295221749,0.19820747,63396.0,63395.0,0.200874]
[1727295223742,0.19820747,63396.0,63395.0,0.080874]
[1727295223946,0.19820747,63396.0,63395.0,0.089754]
[1727295226742,0.19820755,63396.0,63395.0,0.089754]
[1727295227859,0.19820755,63396.0,63395.0,0.209754]
[1727295228157,0.14978692,63396.0,63395.0,0.089754]
[1727295228357,0.11115649,63396.0,63395.0,0.089754]
[1727295231851,0.11115649,63396.0,63395.0,0.01088]
[1727295232361,0.19003049,63396.0,63395.0,0.01088]
[1727295234057,0.11115649,63396.0,63395.0,0.089754]
[1727295236351,0.19820828,63396.0,63395.0,0.089754]
[1727295240562,0.19820828,63396.0,63395.0,0.080874]
[1727295242859,0.27708228,63396.0,63395.0,0.002]
[1727295243253,0.22866125,63396.0,63395.0,0.002]
[1727295243456,0.19003049,63396.0,63395.0,0.002]
[1727295244368,0.19003049,63396.0,63395.0,0.080874]
[1727295244657,0.18803049,63396.0,63395.0,0.079874]
[1727295244864,0.19103049,63396.0,63395.0,0.080874]
[1727295245566,0.31103049,63396.0,63395.0,0.080874]
[1727295247161,0.31103049,63396.0,63395.0,0.002]
[1727295247668,0.078878,63392.0,63391.0,0.12610345]
[1727295247860,0.198878,63392.0,63391.0,0.12610345]
[1727295248464,0.198878,63392.0,63391.0,0.078878]
[1727295248855,0.210878,63392.0,63391.0,0.078878]
[1727295249161,0.07888,63390.0,63389.0,0.04722545]